fUSD/lending_fUSD_20260531
["ID","MTS","AMOUNT","RATE_DAILY","PERIOD"]
[423526435,1780191045000,-710.0,0.0002,2]
[423526417,1780191045000,-250.0,0.00019178,2]
[423526451,1780191045000,-201.93286098,0.00020935,2]
[423526437,1780191045000,-500.0,0.0002,2]
[423526428,1780191045000,-187.78006524,0.00019839,2]
[423526434,1780191045000,-168.0,0.0002,2]
[423526439,1780191045000,-199.0,0.0002,2]
[423526436,1780191045000,-341.0,0.0002,2]
[423526438,1780191045000,-616.48756792,0.0002,2]
[423526440,1780191045000,-300.0,0.0002,2]
[423526442,1780191045000,-7760.89,0.0002,2]
[423526433,1780191045000,-159.0,0.0002,2]
[423526441,1780191045000,-153.0,0.0002,2]
[423526449,1780191045000,-2319.72410669,0.00020387,2]
[423526445,1780191045000,-1000.0,0.0002004,2]
[423526520,1780191046000,-710.0,0.00024,2]
[423526523,1780191046000,-300.0,0.00024,2]
[423526516,1780191046000,-200.0,0.00023947,2]
[423526522,1780191046000,-199.0,0.00024,2]
[423526521,1780191046000,-341.0,0.00024,2]
[423526510,1780191046000,-7760.89,0.00023517,2]
[423526511,1780191046000,-881.96,0.000236,14]
[423526514,1780191046000,-2884.75459676,0.00023675,2]
[423526512,1780191046000,-150.31688556,0.00023607,2]
[423526509,1780191046000,-200.0,0.0002316,2]
[423526505,1780191046000,-520.0,0.00023,2]
[423526530,1780191046000,-1254.05,0.00024174,2]
[423526513,1780191046000,-1980.8648231,0.00023675,2]
[423526519,1780191046000,-500.0,0.00024,2]
[423526528,1780191046000,-1363.72,0.00024174,2]
[423526517,1780191046000,-1124.0,0.00023982,2]
[423526527,1780191046000,-454.0,0.00024,2]
[423526525,1780191046000,-161.0,0.00024,2]
[423526526,1780191046000,-520.0,0.00024,2]
[423526518,1780191046000,-404.0,0.00024,2]
[423526531,1780191046000,-9516.64,0.00024174,2]
[423526533,1780191046000,-757.42238738,0.00024221,2]
[423526537,1780191046000,-2343.0,0.00024611,5]
[423526540,1780191046000,-1037.93,0.00024657,2]
[423526536,1780191046000,-1296.7,0.00024324,2]
[423526534,1780191046000,-2054.15682156,0.00024223,2]
[423526535,1780191046000,-2991.49051684,0.00024223,2]
[423526529,1780191046000,-596.35,0.00024174,2]
[423526504,1780191046000,-153.0,0.00023,2]
[423526477,1780191046000,-5000.0,0.00021918,2]
[423526506,1780191046000,-454.0,0.00023,2]
[423526539,1780191046000,-736.84843217,0.00024653,2]
[423526478,1780191046000,-404.0,0.00022,2]
[423526479,1780191046000,-450.0,0.00022,2]
[423526486,1780191046000,-774.27,0.00022,2]
[423526488,1780191046000,-177.12724706,0.00022031,2]
[423526484,1780191046000,-153.0,0.00022,2]
[423526489,1780191046000,-1776.30922209,0.00022031,2]
[423526487,1780191046000,-454.0,0.00022,2]
[423526490,1780191046000,-2586.85809042,0.00022031,2]
[423526480,1780191046000,-710.0,0.00022,2]
[423526481,1780191046000,-341.0,0.00022,2]
[423526483,1780191046000,-300.0,0.00022,2]
[423526485,1780191046000,-520.0,0.00022,2]
[423526515,1780191046000,-163.26643931,0.000237,2]
[423526482,1780191046000,-199.0,0.00022,2]
[423526492,1780191046000,-283.8,0.00022466,2]
[423526500,1780191046000,-341.0,0.00023,2]
[423526494,1780191046000,-1842.0326633,0.00022579,2]
[423526493,1780191046000,-293.98,0.000225,14]
[423526499,1780191046000,-710.0,0.00023,2]
[423526491,1780191046000,-1296.7,0.00022353,2]
[423526497,1780191046000,-411.16,0.000229,7]
[423526496,1780191046000,-151.0,0.00022873,7]
[423526502,1780191046000,-199.0,0.00023,2]
[423526495,1780191046000,-2682.57183977,0.00022579,2]
[423526498,1780191046000,-404.0,0.00023,2]
[423526507,1780191046000,-1910.18787185,0.00023127,2]
[423526508,1780191046000,-2781.82699784,0.00023127,2]
[423526501,1780191046000,-2013.6097393,0.00023,2]
[423526532,1780191046000,-150.99,0.00024174,2]
[423526503,1780191046000,-300.0,0.00023,2]
[423526538,1780191046000,-1865.0,0.00024611,5]
[423526576,1780191046000,-801.871756,0.00025,2]
[423526572,1780191046000,-185.587909,0.00025,2]
[423526575,1780191046000,-801.871756,0.00025,2]
[423526577,1780191046000,-801.871756,0.00025,2]
[423526578,1780191046000,-217.07564746,0.00025,2]
[423526600,1780191046000,-180.0,0.00026075,2]
[423526579,1780191046000,-307.25213369,0.00025,2]
[423526581,1780191046000,-526.70446218,0.00025,2]
[423526580,1780191046000,-1047.61960593,0.00025,2]
[423526591,1780191046000,-9516.64,0.00025786,2]
[423526582,1780191046000,-457.83477829,0.00025,2]
[423526585,1780191046000,-200.0,0.00025521,2]
[423526589,1780191046000,-596.35,0.00025786,2]
[423526590,1780191046000,-1254.05,0.00025786,2]
[423526583,1780191046000,-643.0,0.000252,2]
[423526584,1780191046000,-7760.89,0.00025276,7]
[423526587,1780191046000,-897.55,0.00025644,2]
[423526588,1780191046000,-1363.72,0.00025786,2]
[423526592,1780191046000,-206.91,0.00025806,2]
[423526595,1780191046000,-550.0,0.00026,2]
[423526598,1780191046000,-219.84017055,0.00026,2]
[423526594,1780191046000,-610.20641585,0.0002599,2]
[423526596,1780191046000,-4593.2465313,0.00026,2]
[423526597,1780191046000,-500.0,0.00026,2]
[423526593,1780191046000,-434.28529374,0.00025886,2]
[423526599,1780191046000,-338.9668459,0.00026044,2]
[423526601,1780191046000,-200.0,0.00026281,2]
[423526571,1780191046000,-185.587909,0.00025,2]
[423526570,1780191046000,-185.587909,0.00025,2]
[423526586,1780191046000,-500.0,0.00025634,2]
[423526574,1780191046000,-801.871756,0.00025,2]
[423526569,1780191046000,-763.30317,0.00025,2]
[423526542,1780191046000,-500.0,0.00024657,2]
[423526541,1780191046000,-500.0,0.00024657,2]
[423526544,1780191046000,-500.0,0.00024657,2]
[423526545,1780191046000,-1027.82,0.00024657,2]
[423526548,1780191046000,-1000.0,0.00024658,2]
[423526549,1780191046000,-200.0,0.00024734,2]
[423526550,1780191046000,-774.27,0.00024891,7]
[423526546,1780191046000,-809.51,0.00024657,2]
[423526552,1780191046000,-2500.80487757,0.000249,2]
[423526547,1780191046000,-803.7,0.00024658,2]
[423526554,1780191046000,-205.46,0.0002498,7]
[423526553,1780191046000,-774.51180051,0.000249,2]
[423526551,1780191046000,-15708.42694327,0.000249,2]
[423526543,1780191046000,-803.28,0.00024657,2]
[423526565,1780191046000,-763.30317,0.00025,2]
[423526568,1780191046000,-2728.040606,0.00025,2]
[423526555,1780191046000,-9999.99,0.0002498,2]
[423526573,1780191046000,-185.587909,0.00025,2]
[423526561,1780191046000,-751251.97337452,0.00025,2]
[423526557,1780191046000,-9999.99,0.0002498,2]
[423526558,1780191046000,-410.0,0.00025,2]
[423526562,1780191046000,-2728.040606,0.00025,2]
[423526560,1780191046000,-355.0,0.00025,2]
[423526564,1780191046000,-2728.040606,0.00025,2]
[423526559,1780191046000,-715.54553,0.00025,2]
[423526567,1780191046000,-763.30317,0.00025,2]
[423526563,1780191046000,-763.30317,0.00025,2]
[423526556,1780191046000,-9999.99,0.0002498,2]
[423526566,1780191046000,-2728.040606,0.00025,2]
[423526622,1780191047000,-250.0,0.00027,2]
[423526625,1780191047000,-530.0,0.00027,2]
[423526620,1780191047000,-2742.61045882,0.00026895,2]
[423526621,1780191047000,-2742.61045882,0.00026924,2]
[423526630,1780191047000,-1295.38,0.00027133,7]
[423526624,1780191047000,-167.28740431,0.00027,2]
[423526623,1780191047000,-1051.69258083,0.00027,2]
[423526634,1780191047000,-151.0,0.00027151,2]
[423526635,1780191047000,-151.0,0.00027151,2]
[423526643,1780191047000,-1178.676767,0.00027151,2]
[423526632,1780191047000,-616.46,0.00027133,7]
[423526644,1780191047000,-1178.676767,0.00027151,2]
[423526627,1780191047000,-2742.61045882,0.00027046,2]
[423526642,1780191047000,-1178.676767,0.00027151,2]
[423526637,1780191047000,-3733.095094,0.00027151,2]
[423526640,1780191047000,-3733.095094,0.00027151,2]
[423526633,1780191047000,-151.0,0.00027151,2]
[423526631,1780191047000,-1291.94,0.00027133,7]
[423526611,1780191047000,-500.0,0.00026403,2]
[423526626,1780191047000,-7760.89,0.00027035,7]
[423526639,1780191047000,-3733.095094,0.00027151,2]
[423526604,1780191047000,-1412.213,0.00026297,2]
[423526603,1780191047000,-525.0,0.00026297,2]
[423526602,1780191047000,-1296.7,0.00026296,2]
[423526606,1780191047000,-6066.0,0.00026297,2]
[423526607,1780191047000,-3639.0,0.00026297,2]
[423526609,1780191047000,-200.0,0.00026308,2]
[423526628,1780191047000,-200.0,0.00027095,2]
[423526614,1780191047000,-2742.61045882,0.00026607,2]
[423526612,1780191047000,-156.0,0.00026455,2]
[423526608,1780191047000,-3550.0,0.00026297,2]
[423526610,1780191047000,-27922.0151851,0.000264,2]
[423526615,1780191047000,-2742.61045882,0.0002662,2]
[423526613,1780191047000,-2077.0,0.00026455,2]
[423526618,1780191047000,-2742.61045882,0.00026878,2]
[423526629,1780191047000,-190.896878,0.0002713,7]
[423526605,1780191047000,-1226.0,0.00026297,2]
[423526616,1780191047000,-2742.61045882,0.00026742,2]
[423526638,1780191047000,-3733.095094,0.00027151,2]
[423526636,1780191047000,-151.0,0.00027151,2]
[423526668,1780191047000,-4517.780945,0.0002739,7]
[423526674,1780191047000,-1000.0,0.00027397,2]
[423526672,1780191047000,-1000.0,0.00027397,2]
[423526673,1780191047000,-1000.0,0.00027397,2]
[423526671,1780191047000,-1000.0,0.00027397,2]
[423526680,1780191047000,-1000.0,0.00027397,2]
[423526686,1780191047000,-740.43199768,0.00027397,2]
[423526667,1780191047000,-8257.98548204,0.0002739,2]
[423526676,1780191047000,-1000.0,0.00027397,2]
[423526678,1780191047000,-1000.0,0.00027397,2]
[423526685,1780191047000,-1000.0,0.00027397,2]
[423526682,1780191047000,-1000.0,0.00027397,2]
[423526679,1780191047000,-1000.0,0.00027397,2]
[423526683,1780191047000,-1000.0,0.00027397,2]
[423526684,1780191047000,-1000.0,0.00027397,2]
[423526641,1780191047000,-1178.676767,0.00027151,2]
[423526687,1780191047000,-1144.0,0.00027397,2]
[423526675,1780191047000,-1000.0,0.00027397,2]
[423526677,1780191047000,-1000.0,0.00027397,2]
[423526665,1780191047000,-2742.61045882,0.00027351,2]
[423526659,1780191047000,-596.13752347,0.00027306,2]
[423526669,1780191047000,-1000.0,0.00027397,2]
[423526652,1780191047000,-2742.61045882,0.00027208,2]
[423526661,1780191047000,-2742.61045882,0.00027338,2]
[423526657,1780191047000,-2742.61045882,0.00027265,2]
[423526650,1780191047000,-500.0,0.00027196,2]
[423526654,1780191047000,-2742.61045882,0.0002725,2]
[423526647,1780191047000,-2742.61045882,0.00027187,2]
[423526662,1780191047000,-10258.24742002,0.00027339,2]
[423526658,1780191047000,-167.12782538,0.000273,30]
[423526663,1780191047000,-4917.05981759,0.00027339,2]
[423526656,1780191047000,-2742.61045882,0.00027256,2]
[423526670,1780191047000,-1000.0,0.00027397,2]
[423526660,1780191047000,-2742.61045882,0.00027331,2]
[423526664,1780191047000,-385.78481713,0.00027339,2]
[423526645,1780191047000,-2742.61045882,0.00027166,2]
[423526666,1780191047000,-4180.12602542,0.0002739,2]
[423526775,1780191048000,-504.26,0.000274,7]
[423526770,1780191048000,-17525.32,0.00027397,10]
[423526771,1780191048000,-14604.43,0.00027397,10]
[423526774,1780191048000,-206.48,0.000274,7]
[423526768,1780191048000,-1366.340287,0.00027397,2]
[423526772,1780191048000,-596.13752347,0.00027397,2]
[423526769,1780191048000,-21030.38,0.00027397,10]
[423526767,1780191048000,-1366.340287,0.00027397,2]
[423526766,1780191048000,-1366.340287,0.00027397,2]
[423526779,1780191048000,-168.148489,0.000274,7]
[423526765,1780191048000,-1366.340287,0.00027397,2]
[423526773,1780191048000,-235.22,0.00027397,2]
[423526786,1780191048000,-500.0,0.000274,2]
[423526778,1780191048000,-168.148489,0.000274,7]
[423526780,1780191048000,-268.512687,0.000274,7]
[423526777,1780191048000,-168.148489,0.000274,7]
[423526781,1780191048000,-268.512687,0.000274,7]
[423526784,1780191048000,-500.0,0.000274,2]
[423526776,1780191048000,-168.148489,0.000274,7]
[423526785,1780191048000,-500.0,0.000274,2]
[423526782,1780191048000,-268.512687,0.000274,7]
[423526783,1780191048000,-268.512687,0.000274,7]
[423526787,1780191048000,-500.0,0.000274,2]
[423526789,1780191048000,-500.0,0.000274,2]
[423526791,1780191048000,-500.0,0.000274,2]
[423526792,1780191048000,-500.0,0.000274,2]
[423526760,1780191048000,-1366.340287,0.00027397,2]
[423526788,1780191048000,-500.0,0.000274,2]
[423526761,1780191048000,-1366.340287,0.00027397,2]
[423526748,1780191048000,-1021.01,0.00027397,2]
[423526759,1780191048000,-1366.340287,0.00027397,2]
[423526737,1780191048000,-558.262504,0.00027397,2]
[423526735,1780191048000,-558.262504,0.00027397,2]
[423526736,1780191048000,-558.262504,0.00027397,2]
[423526734,1780191048000,-558.262504,0.00027397,2]
[423526740,1780191048000,-1708.760772,0.00027397,2]
[423526738,1780191048000,-1708.760772,0.00027397,2]
[423526749,1780191048000,-151.0,0.00027397,2]
[423526750,1780191048000,-151.0,0.00027397,2]
[423526744,1780191048000,-168.148489,0.00027397,2]
[423526745,1780191048000,-168.148489,0.00027397,2]
[423526746,1780191048000,-803.7,0.00027397,2]
[423526741,1780191048000,-1708.760772,0.00027397,2]
[423526742,1780191048000,-168.148489,0.00027397,2]
[423526739,1780191048000,-1708.760772,0.00027397,2]
[423526747,1780191048000,-1468.15,0.00027397,2]
[423526743,1780191048000,-168.148489,0.00027397,2]
[423526800,1780191048000,-500.0,0.000274,2]
[423526752,1780191048000,-151.0,0.00027397,2]
[423526751,1780191048000,-151.0,0.00027397,2]
[423526762,1780191048000,-1366.340287,0.00027397,2]
[423526753,1780191048000,-151.0,0.00027397,2]
[423526756,1780191048000,-300.0,0.00027397,2]
[423526763,1780191048000,-1366.340287,0.00027397,2]
[423526764,1780191048000,-1366.340287,0.00027397,2]
[423526754,1780191048000,-151.0,0.00027397,2]
[423526757,1780191048000,-1366.340287,0.00027397,2]
[423526755,1780191048000,-175.663175,0.00027397,2]
[423526758,1780191048000,-1366.340287,0.00027397,2]
[423526794,1780191048000,-847.4,0.000274,2]
[423526846,1780191048000,-166943.3915247,0.00027688,2]
[423526796,1780191048000,-500.0,0.000274,2]
[423526827,1780191048000,-4195.88,0.0002755,30]
[423526829,1780191048000,-2742.61045882,0.00027567,2]
[423526831,1780191048000,-547.4,0.0002758,7]
[423526834,1780191048000,-547.4,0.00027611,30]
[423526830,1780191048000,-550.3,0.0002758,7]
[423526828,1780191048000,-3475.44,0.0002755,30]
[423526832,1780191048000,-736.84843217,0.00027588,2]
[423526833,1780191048000,-550.3,0.00027611,30]
[423526835,1780191048000,-1000.0,0.00027614,2]
[423526848,1780191048000,-1333563.8810911,0.00027688,2]
[423526847,1780191048000,-2071.0389967,0.00027688,2]
[423526837,1780191048000,-547.4,0.00027641,2]
[423526838,1780191048000,-2742.61045882,0.00027658,2]
[423526842,1780191048000,-170.948439,0.00027685,7]
[423526840,1780191048000,-547.4,0.00027672,7]
[423526841,1780191048000,-151.0,0.00027685,7]
[423526845,1780191048000,-500.0,0.00027687,7]
[423526844,1780191048000,-310.00034415,0.00027687,10]
[423526843,1780191048000,-300.0,0.00027687,10]
[423526849,1780191048000,-796.46927,0.00027688,7]
[423526850,1780191048000,-151.0,0.00027688,7]
[423526851,1780191048000,-625.489156,0.00027688,7]
[423526855,1780191048000,-796.46927,0.00027688,7]
[423526853,1780191048000,-151.0,0.00027688,7]
[423526854,1780191048000,-625.489156,0.00027688,7]
[423526852,1780191048000,-796.46927,0.00027688,7]
[423526797,1780191048000,-309.0,0.000274,2]
[423526836,1780191048000,-550.3,0.00027641,2]
[423526826,1780191048000,-2805.02,0.0002755,30]
[423526839,1780191048000,-550.3,0.00027672,7]
[423526822,1780191048000,-2763.0,0.0002755,30]
[423526795,1780191048000,-500.0,0.000274,2]
[423526825,1780191048000,-547.4,0.0002755,2]
[423526793,1780191048000,-500.0,0.000274,2]
[423526798,1780191048000,-1000.0,0.000274,2]
[423526799,1780191048000,-315.0,0.000274,2]
[423526802,1780191048000,-500.0,0.000274,2]
[423526803,1780191048000,-500.0,0.000274,2]
[423526811,1780191048000,-5207.62,0.000274,2]
[423526801,1780191048000,-500.0,0.000274,2]
[423526807,1780191048000,-564.93,0.000274,2]
[423526805,1780191048000,-500.0,0.000274,2]
[423526804,1780191048000,-500.0,0.000274,2]
[423526809,1780191048000,-5207.62,0.000274,2]
[423526806,1780191048000,-500.0,0.000274,2]
[423526790,1780191048000,-500.0,0.000274,2]
[423526810,1780191048000,-5207.62,0.000274,2]
[423526821,1780191048000,-550.3,0.0002755,2]
[423526820,1780191048000,-209.12966642,0.0002755,30]
[423526816,1780191048000,-2742.61045882,0.00027509,2]
[423526817,1780191048000,-2742.61045882,0.00027513,2]
[423526808,1780191048000,-500.0,0.000274,2]
[423526814,1780191048000,-200.0,0.00027482,2]
[423526819,1780191048000,-2742.61045882,0.00027534,2]
[423526815,1780191048000,-204.51313483,0.000275,2]
[423526812,1780191048000,-5207.62,0.000274,2]
[423526824,1780191048000,-3449.03,0.0002755,30]
[423526823,1780191048000,-4158.72,0.0002755,30]
[423526813,1780191048000,-5207.62,0.000274,2]
[423526818,1780191048000,-150.0,0.00027521,2]
[423526898,1780191049000,-1708.760772,0.00027688,7]
[423526897,1780191049000,-1708.760772,0.00027688,7]
[423526896,1780191049000,-1708.760772,0.00027688,7]
[423526892,1780191049000,-1708.760772,0.00027688,7]
[423526888,1780191049000,-558.262504,0.00027688,7]
[423526899,1780191049000,-168.148489,0.00027688,7]
[423526891,1780191049000,-1708.760772,0.00027688,7]
[423526900,1780191049000,-168.148489,0.00027688,7]
[423526890,1780191049000,-558.262504,0.00027688,7]
[423526895,1780191049000,-1708.760772,0.00027688,7]
[423526889,1780191049000,-558.262504,0.00027688,7]
[423526893,1780191049000,-1708.760772,0.00027688,7]
[423526894,1780191049000,-1708.760772,0.00027688,7]
[423526912,1780191049000,-3733.095094,0.00027688,7]
[423526902,1780191049000,-168.148489,0.00027688,7]
[423526906,1780191049000,-268.512687,0.00027688,7]
[423526903,1780191049000,-1178.1635397,0.00027688,2]
[423526909,1780191049000,-151.0,0.00027688,7]
[423526910,1780191049000,-151.0,0.00027688,7]
[423526911,1780191049000,-151.0,0.00027688,7]
[423526904,1780191049000,-268.512687,0.00027688,7]
[423526905,1780191049000,-268.512687,0.00027688,7]
[423526901,1780191049000,-168.148489,0.00027688,7]
[423526907,1780191049000,-151.0,0.00027688,7]
[423526918,1780191049000,-1178.676767,0.00027688,7]
[423526879,1780191049000,-151.0,0.00027688,7]
[423526908,1780191049000,-268.512687,0.00027688,7]
[423526883,1780191049000,-558.262504,0.00027688,7]
[423526857,1780191049000,-625.489156,0.00027688,7]
[423526880,1780191049000,-151.0,0.00027688,7]
[423526922,1780191049000,-2728.040606,0.00027688,7]
[423526856,1780191049000,-151.0,0.00027688,7]
[423526861,1780191049000,-151.0,0.00027688,7]
[423526860,1780191049000,-625.489156,0.00027688,7]
[423526858,1780191049000,-796.46927,0.00027688,7]
[423526859,1780191049000,-151.0,0.00027688,7]
[423526862,1780191049000,-14416.9842237,0.00027688,2]
[423526863,1780191049000,-151.0,0.00027688,7]
[423526864,1780191049000,-151.0,0.00027688,7]
[423526874,1780191049000,-1102.874189,0.00027688,7]
[423526867,1780191049000,-2298.8636965,0.00027688,2]
[423526865,1780191049000,-151.0,0.00027688,7]
[423526872,1780191049000,-1102.874189,0.00027688,7]
[423526884,1780191049000,-558.262504,0.00027688,7]
[423526866,1780191049000,-151.0,0.00027688,7]
[423526868,1780191049000,-151.0,0.00027688,7]
[423526871,1780191049000,-1102.874189,0.00027688,7]
[423526869,1780191049000,-151.0,0.00027688,7]
[423526870,1780191049000,-14241.1327404,0.00027688,2]
[423526875,1780191049000,-1102.874189,0.00027688,7]
[423526882,1780191049000,-151.0,0.00027688,7]
[423526877,1780191049000,-1102.874189,0.00027688,7]
[423526878,1780191049000,-1102.874189,0.00027688,7]
[423526881,1780191049000,-151.0,0.00027688,7]
[423526887,1780191049000,-558.262504,0.00027688,7]
[423526885,1780191049000,-558.262504,0.00027688,7]
[423526876,1780191049000,-1102.874189,0.00027688,7]
[423526886,1780191049000,-558.262504,0.00027688,7]
[423526873,1780191049000,-1102.874189,0.00027688,7]
[423526913,1780191049000,-3733.095094,0.00027688,7]
[423526924,1780191049000,-2728.040606,0.00027688,7]
[423526923,1780191049000,-763.30317,0.00027688,7]
[423526946,1780191049000,-300.0,0.0002771,10]
[423526954,1780191049000,-2742.61045882,0.00027731,2]
[423526953,1780191049000,-200.0,0.0002773,2]
[423526952,1780191049000,-3475.44,0.00027711,7]
[423526959,1780191049000,-547.4,0.00027763,7]
[423526957,1780191049000,-1000.0,0.00027761,15]
[423526955,1780191049000,-550.3,0.00027733,2]
[423526958,1780191049000,-550.3,0.00027763,7]
[423526956,1780191049000,-547.4,0.00027733,2]
[423526960,1780191049000,-774.27,0.00027782,7]
[423526961,1780191049000,-550.3,0.00027794,30]
[423526962,1780191049000,-547.4,0.00027794,30]
[423526965,1780191049000,-2742.61045882,0.00027829,2]
[423526963,1780191049000,-550.3,0.00027824,2]
[423526966,1780191049000,-550.3,0.00027855,7]
[423526964,1780191049000,-547.4,0.00027824,2]
[423526967,1780191049000,-547.4,0.00027855,7]
[423526970,1780191049000,-4158.72,0.00027872,2]
[423526971,1780191049000,-3449.03,0.00027872,2]
[423526969,1780191049000,-2763.0,0.00027872,2]
[423526972,1780191049000,-2805.02,0.00027872,2]
[423526968,1780191049000,-300.0,0.00027871,10]
[423526914,1780191049000,-3733.095094,0.00027688,7]
[423526974,1780191049000,-3475.44,0.00027872,2]
[423526975,1780191049000,-2742.61045882,0.00027877,2]
[423526977,1780191049000,-550.3,0.00027885,30]
[423526976,1780191049000,-200.0,0.00027882,2]
[423526950,1780191049000,-2805.02,0.00027711,7]
[423526941,1780191049000,-322.4029401,0.00027688,2]
[423526973,1780191049000,-4195.88,0.00027872,2]
[423526947,1780191049000,-2763.0,0.00027711,7]
[423526943,1780191049000,-411.16,0.000277,7]
[423526917,1780191049000,-1178.676767,0.00027688,7]
[423526915,1780191049000,-3733.095094,0.00027688,7]
[423526916,1780191049000,-1178.676767,0.00027688,7]
[423526920,1780191049000,-2728.040606,0.00027688,7]
[423526925,1780191049000,-763.30317,0.00027688,7]
[423526919,1780191049000,-1178.676767,0.00027688,7]
[423526921,1780191049000,-763.30317,0.00027688,7]
[423526931,1780191049000,-1366.340287,0.00027688,7]
[423526936,1780191049000,-185.587905,0.00027688,7]
[423526933,1780191049000,-185.587909,0.00027688,7]
[423526928,1780191049000,-39219.0669758,0.00027688,2]
[423526932,1780191049000,-1366.340287,0.00027688,7]
[423526927,1780191049000,-763.30317,0.00027688,7]
[423526934,1780191049000,-185.587909,0.00027688,7]
[423526929,1780191049000,-1366.340287,0.00027688,7]
[423526951,1780191049000,-4195.88,0.00027711,7]
[423526926,1780191049000,-2728.040606,0.00027688,7]
[423526949,1780191049000,-3449.03,0.00027711,7]
[423526944,1780191049000,-550.3,0.00027702,30]
[423526945,1780191049000,-547.4,0.00027702,30]
[423526942,1780191049000,-13264.5633392,0.00027688,2]
[423526948,1780191049000,-4158.72,0.00027711,7]
[423526940,1780191049000,-801.871759,0.00027688,7]
[423526937,1780191049000,-801.871756,0.00027688,7]
[423526938,1780191049000,-801.871756,0.00027688,7]
[423526935,1780191049000,-185.587909,0.00027688,7]
[423526930,1780191049000,-1366.340287,0.00027688,7]
[423526939,1780191049000,-801.871756,0.00027688,7]
[423526984,1780191050000,-547.4,0.00027916,2]
[423526988,1780191050000,-1511.12,0.00027941,2]
[423526989,1780191050000,-1511.12,0.00027941,2]
[423526990,1780191050000,-1511.12,0.00027943,2]
[423526985,1780191050000,-1511.12,0.00027939,2]
[423526978,1780191050000,-547.4,0.00027885,30]
[423526979,1780191050000,-821.43,0.00027892,18]
[423526982,1780191050000,-2742.61045882,0.0002791,2]
[423526980,1780191050000,-155.045,0.00027892,18]
[423526983,1780191050000,-550.3,0.00027916,2]
[423526995,1780191050000,-1256.51,0.00027947,7]
[423526981,1780191050000,-2742.61045882,0.00027899,2]
[423526987,1780191050000,-1511.12,0.00027941,2]
[423526992,1780191050000,-1511.12,0.00027943,2]
[423526994,1780191050000,-547.4,0.00027946,7]
[423526986,1780191050000,-1511.12,0.00027939,2]
[423526998,1780191050000,-550.3,0.00027977,30]
[423526999,1780191050000,-547.4,0.00027977,30]
[423527003,1780191050000,-1349.99999901,0.00028,2]
[423526997,1780191050000,-2742.61045882,0.00027954,2]
[423527001,1780191050000,-600.0,0.00028,2]
[423527000,1780191050000,-2742.61045882,0.00027988,2]
[423527002,1780191050000,-200.0,0.00028,20]
[423527004,1780191050000,-2119.79193584,0.00028,2]
[423526993,1780191050000,-550.3,0.00027946,7]
[423526991,1780191050000,-1511.12,0.00027943,2]
[423526996,1780191050000,-1253.19,0.00027947,7]
[423527014,1780191051000,-452.0,8.229e-05,2]
[423527033,1780191051000,-2000.0,0.00028006,2]
[423527023,1780191051000,-48.95223692,8.229e-05,2]
[423527024,1780191051000,-452.0,8.229e-05,2]
[423527021,1780191051000,-152.0,8.229e-05,2]
[423527022,1780191051000,-403.04776308,8.229e-05,2]
[423527020,1780191051000,-300.0,8.229e-05,2]
[423527013,1780191051000,-452.0,8.229e-05,2]
[423527012,1780191051000,-452.0,8.229e-05,2]
[423527019,1780191051000,-371.345,0.00028,2]
[423527009,1780191051000,-452.0,8.229e-05,2]
[423527018,1780191051000,-3647.02618885,0.00028,2]
[423527016,1780191051000,-452.0,8.229e-05,2]